[Event "LEM Niedersachsen-Meister 2025"]
[Site "Verden"]
[Date "2025.01.03"]
[Round "4.8"]
[White "Drygala, Lars"]
[Black "Hoeffer, David"]
[Result "0-1"]
[ECO "A47"]
[WhiteElo "2067"]
[BlackElo "2322"]
[Annotator "TA"]
[PlyCount "68"]
[EventDate "2024.12.27"]
[EventType "swiss"]
[EventCountry "GER"]
[SourceTitle "playchess.com"]
[Source "ChessBase"]
[SourceQuality "1"]
[TimeControl "40/5400+30:1800+30"]

{[%evp 21,68,22,58,67,71,77,84,48,75,15,7,9,19,0,20,23,14,22,55,14,5,11,28,28,52,0,20,15,29,0,0,0,0,0,2,-16,0,0,0,-16,-19,-41,0,-416,-356,-843,-832,-1307,-1291]} 1. d4 {[%emt 0:00:03]} Nf6 {[%emt 0:00:04]} 2. Nf3 {[%emt 0:00:07]} e6 {[%emt 0:00:24]} 3. Bf4 {[%emt 0:00:06]} c5 {[%emt 0:01:00]} 4. c3 {[%emt 0:00:28]} b6 {[%emt 0:02:48]} 5. e3 {[%emt 0:00:20]} Bb7 {[%emt 0:00:10]} 6. Nbd2 {[%emt 0:00:18]} Be7 {[%emt 0:02:29]} 7. Bd3 {[%emt 0:00:28]} d6 {[%emt 0:04:39]} 8. h3 {[%emt 0:01:38]} O-O {[%emt 0:00:16]} 9. O-O {[%emt 0:00:41]} Nc6 {[%emt 0:03:10]} 10. Qe2 {[%emt 0:04:41]} Qc7 {[%emt 0:01:33]} 11. Bh2 {[%emt 0:02:25]} e5 {[%emt 0:05:05]} 12. dxe5 {[%emt 0:06:03]} dxe5 {[%emt 0:02:14]} 13. Nc4 {[%emt 0:01:11]} Nd7 {[%emt 0:09:24]} 14. Bf5 {[%emt 0:04:56]} Rad8 {[%emt 0:06:44]} 15. Bxd7 {[%emt 0:01:18]} (15. Rfd1 $16) 15... Qxd7 $11 {[%emt 0:00:07]} 16. Ncxe5 {[%emt 0:01:03]} Nxe5 {[%emt 0:00:07]} 17. Nxe5 {[%emt 0:03:21]} Qd5 {[%emt 0:10:23][%csl Gb7][%cal Rd5g2]} 18. Nf3 {[%emt 0:05:46]} Qe6 {[%emt 0:09:12]} 19. Rfd1 {[%emt 0:13:25]} Rxd1+ {[%emt 0:03:47]} 20. Qxd1 {[%emt 0:00:46]} Rd8 {[%emt 0:00:04]} 21. Qe2 {[%emt 0:01:00]} Qd5 {[%emt 0:02:33]} 22. Bg3 {[%emt 0:07:58]} h6 {[%emt 0:01:20]} 23. Qc2 {[%emt 0:03:02]} (23. c4 $14 Qe4 24. a4) 23... Bf6 {[%emt 0:01:23]} 24. Qa4 {[%emt 0:01:12]} a6 {[%emt 0:02:12]} 25. Qf4 {[%emt 0:03:07]} b5 {[%emt 0:03:22]} 26. Bh4 {[%emt 0:00:32]} Bxh4 {[%emt 0:00:57]} 27. Qxh4 {[%emt 0:00:06]} Rd6 {[%emt 0:00:05]} 28. Kh2 {[%emt 0:06:26] White is weak on the light squares} Rg6 {[%emt 0:01:03][%cal Og6g2][%mdl 1024] Black has compensation.} 29. Qf4 {[%emt 0:01:09]} Kh7 {[%emt 0:01:28]} 30. b3 {[%emt 0:02:45]} Rf6 {[%emt 0:00:34]} 31. Qg3 {[%emt 0:01:47]} Qd3 {[%emt 0:04:54][%cal Ob7f3] Threatens to win with ...Bxf3!.} 32. Re1 $2 {[%emt 0:02:39][%mdl 8192]} (32. Ne5 $1 $11 Qd2 33. f3) 32... Qxc3 {[%emt 0:02:04]} 33. Re2 $2 {[%emt 0:01:03]} (33. e4 Rxf3 34. Qxf3 Qxe1 35. Qf5+ Kg8 36. f3) 33... Bxf3 $19 {[%emt 0:00:54]} 34. gxf3 {[%emt 0:00:06]} Rg6 {[%emt 0:00:03]} 0-1

[Event "LEM Niedersachsen-Meister 2025"]
[Site "Verden"]
[Date "2025.01.03"]
[Round "4.9"]
[White "Meiwes, Thore"]
[Black "Riemay, David"]
[Result "0-1"]
[ECO "B06"]
[WhiteElo "2120"]
[BlackElo "2243"]
[Annotator "RC"]
[PlyCount "84"]
[EventDate "2024.12.27"]
[EventType "swiss"]
[EventCountry "GER"]
[SourceTitle "playchess.com"]
[Source "ChessBase"]
[SourceQuality "1"]
[TimeControl "40/5400+30:1800+30"]

1. d4 {[%emt 0:04:07]} d6 {[%emt 0:01:19]} 2. e4 {[%emt 0:00:07]} Nf6 {[%emt 0:00:07]} 3. Nc3 {[%emt 0:00:05]} g6 {[%emt 0:00:15]} 4. Be3 {[%emt 0:00:07]} a6 {[%emt 0:00:11]} 5. Qd2 {[%emt 0:00:07]} b5 {[%emt 0:00:14]} 6. f3 {[%emt 0:00:06]} Nbd7 {[%emt 0:00:53]} 7. h4 {[%emt 0:00:04]} h5 {[%emt 0:00:20]} 8. Nh3 {[%emt 0:00:13]} Bb7 {[%emt 0:03:25]} 9. Ng5 {[%emt 0:00:04]} Bg7 {[%emt 0:04:30]} 10. O-O-O {[%emt 0:00:08]} e5 {[%emt 0:02:54]} 11. Kb1 {[%emt 0:04:48]} O-O {[%emt 0:02:06]} 12. dxe5 {[%emt 0:00:36]} Nxe5 {[%emt 0:00:49]} 13. g4 {[%emt 0:00:33]} Nxf3 {[%emt 0:10:18]} 14. Nxf3 {[%emt 0:01:21]} Nxe4 {[%emt 0:00:12]} 15. Nxe4 {[%emt 0:09:52]} Bxe4 {[%emt 0:00:10]} 16. Be2 {[%emt 0:29:02]} hxg4 {[%emt 0:08:34]} 17. Ng5 {[%emt 0:01:48]} Bxh1 {[%emt 0:05:11]} 18. Rxh1 {[%emt 0:00:18]} Qf6 {[%emt 0:10:17]} 19. c3 {[%emt 0:00:16]} Rae8 {[%emt 0:00:15]} 20. Bd4 {[%emt 0:05:02]} Qf5+ {[%emt 0:03:22]} 21. Bd3 {[%emt 0:00:18]} Qd5 {[%emt 0:00:11]} 22. Rd1 {[%emt 0:02:39]} Bxd4 {[%emt 0:01:19]} 23. cxd4 {[%emt 0:00:26]} Qxd4 {[%emt 0:15:18]} 24. h5 {[%emt 0:05:31]} Qe3 {[%emt 0:01:34]} 25. hxg6 {[%emt 0:00:44]} Qxd2 {[%emt 0:00:31]} 26. gxf7+ {[%emt 0:01:08]} Rxf7 {[%emt 0:00:18]} 27. Rxd2 {[%emt 0:00:11]} Rf4 {[%emt 0:07:12]} 28. Rg2 {[%emt 0:12:00]} Re3 {[%emt 0:03:22]} 29. Kc2 {[%emt 0:01:25]} d5 {[%emt 0:00:59]} 30. Kd2 {[%emt 0:01:13]} d4 {[%emt 0:00:23]} 31. Be2 {[%emt 0:03:11]} g3 {[%emt 0:02:01]} 32. Nh3 {[%emt 0:00:58]} Rh4 {[%emt 0:00:55]} 33. Ng1 {[%emt 0:01:40]} Rh2 {[%emt 0:00:42]} 34. Bf1 {[%emt 0:00:15]} c5 {[%emt 0:02:29]} 35. Ne2 {[%emt 0:04:20]} Kf7 {[%emt 0:04:12]} 36. Rxh2 {[%emt 0:02:27]} gxh2 {[%emt 0:00:18]} 37. Bg2 {[%emt 0:00:06]} Kf6 {[%emt 0:01:49]} 38. b3 {[%emt 0:06:00]} Ke5 {[%emt 0:00:25]} 39. Bb7 {[%emt 0:00:44]} c4 {[%emt 0:00:44]} 40. bxc4 {[%emt 0:04:26]} bxc4 {[%emt 0:00:04]} 41. Nc1 {[%emt 0:30:33]} Rg3 {[%emt 0:35:43]} 42. Ne2 {[%emt 0:01:46]} Rg1 {[%emt 0:00:30]} 0-1

[Event "LEM Niedersachsen-Meister 2025"]
[Site "Verden"]
[Date "2025.01.03"]
[Round "4.10"]
[White "ter Stal, Lars"]
[Black "Lammers, Markus"]
[Result "0-1"]
[ECO "B00"]
[WhiteElo "1815"]
[BlackElo "2304"]
[Annotator "TA"]
[PlyCount "76"]
[EventDate "2024.12.27"]
[EventType "swiss"]
[EventCountry "GER"]
[SourceTitle "playchess.com"]
[Source "ChessBase"]
[SourceQuality "1"]
[TimeControl "40/5400+30:1800+30"]

{[%evp 9,76,93,83,74,88,64,54,60,75,10,75,40,51,-98,-78,-93,-42,-57,-52,-62,-69,-56,-47,-43,-22,-32,-27,-83,-72,-76,-73,-93,-38,-87,-47,-51,-51,-64,-34,-215,-217,-203,-187,-204,-213,-218,-201,-203,-171,-341,-352,-478,-477,-484,-478,-587,-540,-690,-731,-784,-765,-828,-827,-831,-820,-29975,-29980,-29992,-737]} 1. e4 {[%emt 0:00:04]} Nc6 {[%emt 0:02:49]} 2. Nf3 {[%emt 0:00:35]} f5 {[%emt 0:00:08]} 3. exf5 {[%emt 0:01:37]} d5 {[%emt 0:00:07]} 4. d4 {[%emt 0:00:49]} Bxf5 {[%emt 0:00:07]} 5. Bb5 {[%emt 0:01:05]} e6 {[%emt 0:00:06]} 6. Ne5 {[%emt 0:02:01][%cal Oc2c4]} Nge7 {[%emt 0:00:08]} 7. Bg5 {[%emt 0:21:31]} Qd6 {[%emt 0:00:16]} 8. c3 {[%emt 0:00:57] Hoping for Qb3. Wards off Qb4} a6 {[%emt 0:00:49] [#]} 9. Qa4 {[%emt 0:07:28]} (9. Bxe7 $1 $16 Bxe7 10. Bxc6+ bxc6 11. O-O) 9... Rc8 {[%emt 0:00:30]} (9... Rb8 $11 10. Bxc6+ Nxc6) 10. Be2 {[%emt 0:20:31]} Rb8 {[%emt 0:07:19]} 11. Bxe7 {[%emt 0:06:58]} (11. f4 $14 {keeps the upper hand.}) 11... Bxe7 $17 {[%emt 0:00:31]} 12. Nxc6 {[%emt 0:00:14]} Qxc6 {[%emt 0:05:04]} (12... bxc6 $17 13. b4 a5) 13. Qxc6+ {[%emt 0:00:10]} bxc6 {[%emt 0:00:05]} 14. b3 $1 {[%emt 0:00:43]} a5 {[%emt 0:00:30]} 15. O-O {[%emt 0:01:34]} c5 {[%emt 0:09:20]} 16. Nd2 {[%emt 0:03:42]} O-O {[%emt 0:14:34]} 17. Nf3 {[%emt 0:01:15]} Bf6 {[%emt 0:01:06][%cal Oa5a4]} 18. Ne5 {[%emt 0:03:21]} (18. Rfc1 $11 {keeps the balance.}) 18... Bxe5 {[%emt 0:19:02]} 19. dxe5 {[%emt 0:00:52] [#]} a4 $1 {[%emt 0:00:09]} 20. bxa4 {[%emt 0:04:49]} c4 {[%emt 0:02:55]} (20... Ra8 $17 21. c4 (21. Bb5 c4 $17) 21... Rxa4 22. cxd5 exd5) 21. g4 {[%emt 0:03:31]} (21. f4 $15 {feels stronger.}) 21... Bg6 {[%emt 0:01:12][%mdl 1024] Black has strong compensation.} 22. f4 {[%emt 0:02:32]} Rb2 {[%emt 0:01:31]} 23. Rf2 {[%emt 0:00:43][%cal Of4f5]} Be4 {[%emt 0:08:52] ...Rc2 would now be deadly. Black has more active pieces.} 24. a5 $2 {[%emt 0:02:41]} ({White should play} 24. Raf1 $15) 24... Rc2 $19 {[%emt 0:03:22]} 25. f5 {[%emt 0:02:33]} Rxc3 {[%emt 0:05:19]} 26. a4 {[%emt 0:02:51]} exf5 {[%emt 0:05:36]} 27. gxf5 {[%emt 0:00:08]} Re3 {[%emt 0:05:31][%cal Of8a8]} (27... Rxf5 28. Rxf5 Bxf5 29. a6 $18) (27... Bxf5 28. a6 $15) 28. a6 {[%emt 0:01:20]} c3 {[%emt 0:00:28][%cal Of8d8]} (28... Bxf5 29. a7 g6 (29... Rxe5 $2 30. Rb1 $18) 30. Bg4 Rxe5 (30... Bxg4 $2 31. Rxf8+ Kxf8 32. a8=Q+ $18) 31. Rb1 $11) (28... Rxf5 $2 29. Rxf5 Rxe2 30. e6 Bxf5 31. a7 $18) 29. a7 $2 {[%emt 0:01:48]} (29. Bf1 {keeps fighting.}) 29... Ra8 {[%emt 0:01:35]} (29... Rxf5 30. a8=Q+ (30. a8=R+ Kf7 $18) 30... Kf7 31. Rxf5+ Bxf5 32. Qxd5+ Kg6 33. Qc6+ (33. Kf2 Rxe2+ 34. Kxe2 h5 $18) 33... Kg5 34. Qg2+ Kf4 35. Rf1+ Kxe5 36. Qxg7+ Ke6 37. Qh6+ Ke7 38. Qxe3+) (29... Bxf5 $2 30. Rxf5 Re8 31. Bb5 $18) 30. e6 {[%emt 0:01:46]} Kf8 {[%emt 0:01:18]} (30... Rxa7 31. Bf1 $19) 31. Bb5 {[%emt 0:02:42]} Ke7 {[%emt 0:01:03]} 32. Raf1 {[%emt 0:02:58]} Kf6 {[%emt 0:01:42]} 33. Re2 {[%emt 0:00:34]} Rxe2 {[%emt 0:00:19]} 34. Bxe2 {[%emt 0:00:09]} Rxa7 {[%emt 0:00:12]} 35. Bb5 {[%emt 0:00:16]} c5 {[%emt 0:00:33]} (35... Bxf5 36. e7 Kxe7 37. Rxf5 $11) 36. Kf2 {[%emt 0:00:49]} Bxf5 {[%emt 0:00:42]} ({Less strong is} 36... Kxf5 37. Bd7 Ke5 (37... Kf6 38. Ke1+ Ke7 39. Rf7+ Kd6 40. Bc6 $14) 38. e7 $17) 37. Bd3 {[%emt 0:00:21]} Bxd3 {[%emt 0:00:13]} 38. Ke3+ {[%emt 0:00:04]} Ke5 {[%emt 0:02:59]} (38... Bxf1 $142 39. h3 Kxe6 (39... Rxa4 {gets mated.} 40. h4 Re4+ 41. Kf3 c2 42. e7 Kxe7 43. h5 c1=Q 44. Kf2 Qd2+ 45. Kxf1 Re1#) 40. Kf4 c2 (40... Rxa4+ 41. Ke3 Kf5 42. Kf3 c2 43. Kg3 c1=Q 44. Kf2 Ra2+ 45. Kg3 Qf4#) 41. h4 c1=Q+ 42. Kf3 Rf7+ (42... Rxa4 $2 43. Kf2 Qd2+ 44. Kxf1 Ra1#) 43. Kg4 Qf4+ 44. Kh5 g6#) 0-1

[Event "LEM Niedersachsen-Meister 2025"]
[Site "Verden"]
[Date "2025.01.03"]
[Round "4.11"]
[White "Kieselbach, Jannik"]
[Black "Lichtmannecker, Daniel"]
[Result "0-1"]
[ECO "B19"]
[WhiteElo "1979"]
[BlackElo "2171"]
[Annotator "TA"]
[PlyCount "58"]
[EventDate "2024.12.27"]
[EventType "swiss"]
[EventCountry "GER"]
[SourceTitle "playchess.com"]
[Source "ChessBase"]
[SourceQuality "1"]
[TimeControl "40/5400+30:1800+30"]

{[%evp 26,58,0,18,16,-3,0,-17,-12,-56,-32,-53,-41,-166,-145,-186,-171,-199,-193,-681,-664,-654,-664,-651,-640,-1075,-1048,-3195,-2774,-29992,-29993,-29994,-29994,-29995,-968]} 1. e4 {[%emt 0:03:27]} c6 {[%emt 0:03:49]} 2. d4 {[%emt 0:00:26]} d5 {[%emt 0:00:07]} 3. Nd2 {[%emt 0:00:12]} dxe4 {[%emt 0:00:13]} 4. Nxe4 {[%emt 0:00:08]} Bf5 {[%emt 0:00:10]} 5. Ng3 {[%emt 0:00:56]} Bg6 {[%emt 0:00:06]} 6. Nf3 {[%emt 0:00:16]} Nd7 {[%emt 0:00:25]} 7. h4 {[%emt 0:02:43][%cal Bh2h4,Bh4h5][%mdl 32]} h6 {[%emt 0:00:21]} 8. h5 {[%emt 0:00:27]} Bh7 {[%emt 0:00:07]} 9. Bd3 {[%emt 0:00:06]} Bxd3 {[%emt 0:00:11]} 10. Qxd3 {[%emt 0:00:05]} e6 {[%emt 0:00:09]} 11. Bd2 {[%emt 0:00:35]} Ngf6 {[%emt 0:00:15]} 12. O-O-O {[%emt 0:00:43]} Be7 {[%emt 0:00:11]} 13. Kb1 {[%emt 0:00:45]} O-O {[%emt 0:01:39]} 14. Ne4 {[%emt 0:03:27]} c5 {[%emt 0:01:23]} 15. Nxf6+ {[%emt 0:17:39]} Nxf6 {[%emt 0:00:14]} 16. Be3 {[%emt 0:09:43]} Rc8 {[%emt 0:06:05]} 17. Qe2 {[%emt 0:23:42]} c4 {[%emt 0:04:08]} 18. c3 {[%emt 0:00:57]} b5 {[%emt 0:05:36]} 19. Nd2 {[%emt 0:02:56]} (19. Ne5 $15) 19... Nd5 {[%emt 0:06:05]} 20. Rc1 {[%emt 0:04:27]} b4 {[%emt 0:11:55]} 21. Ne4 {[%emt 0:08:48]} Qa5 {[%emt 0:08:30] And now ...b3 would win.} 22. Bd2 $2 {[%emt 0:09:27] [#]} (22. Rh3) 22... b3 $1 $19 {[%emt 0:13:44][%csl Gb3][%cal Ra5a2]} 23. a3 {[%emt 0:00:57] [#]} Bxa3 $1 {[%emt 0:01:45][%mdl 512]} 24. bxa3 {[%emt 0:01:51]} Qxa3 {[%emt 0:00:06][%csl Gb3][%cal Ra3a2]} 25. Be3 {[%emt 0:03:44]} b2 {[%emt 0:00:49] ( -> ...Nxe3)} 26. Rcd1 {[%emt 0:01:58]} f5 {[%emt 0:03:40]} (26... Nxc3+ 27. Nxc3 Qxc3 28. Rd2 $14) 27. Bd2 {[%emt 0:02:25]} fxe4 {[%emt 0:00:52]} 28. Qxe4 {[%emt 0:00:37]} Rc6 {[%emt 0:02:21]} 29. Rh3 {[%emt 0:00:42]} Qa1+ {[%emt 0:01:17]} 0-1

[Event "LEM Niedersachsen-Meister 2025"]
[Site "Verden"]
[Date "2025.01.03"]
[Round "4.12"]
[White "Peters, Tom"]
[Black "Sreyas Payyappat"]
[Result "1-0"]
[ECO "B12"]
[WhiteElo "2166"]
[BlackElo "2115"]
[Annotator "TA"]
[PlyCount "53"]
[EventDate "2024.12.27"]
[EventType "swiss"]
[EventCountry "GER"]
[SourceTitle "playchess.com"]
[Source "ChessBase"]
[SourceQuality "1"]
[TimeControl "40/5400+30:1800+30"]

{[%evp 9,53,12,8,0,0,0,0,0,0,0,16,16,40,27,67,72,155,139,110,95,385,368,363,377,317,262,235,120,485,487,1107,677,687,687,672,644,616,381,653,656,632,615,909,890,3660,2863]} 1. e4 {[%emt 0:04:06]} c6 {[%emt 0:00:07]} 2. d4 {[%emt 0:00:35]} d5 {[%emt 0:00:04]} 3. f3 {[%emt 0:00:56]} Qb6 {[%emt 0:00:36]} 4. Nc3 {[%emt 0:01:55]} dxe4 {[%emt 0:00:16]} 5. fxe4 {[%emt 0:00:08]} e5 $1 {[%emt 0:00:14]} 6. Nf3 {[%emt 0:00:46]} exd4 {[%emt 0:00:07]} 7. Nxd4 {[%emt 0:00:11]} Bc5 {[%emt 0:00:50]} 8. Na4 {[%emt 0:01:45] The position is equal.} Qa5+ {[%emt 0:00:12]} 9. c3 {[%emt 0:00:08]} Bd6 {[%emt 0:00:55]} 10. Nf3 {[%emt 0:00:52]} Qc7 {[%emt 0:01:18]} 11. Qd4 {[%emt 0:01:05]} Bf8 {[%emt 0:15:23]} 12. Bg5 {[%emt 0:21:46]} Be6 {[%emt 0:05:06]} ({Better is} 12... h6 13. Bh4 Nf6) 13. Nc5 $16 {[%emt 0:04:54] White is much more active.} Bxc5 {[%emt 0:01:16]} 14. Qxg7 $40 {[%emt 0:03:36][%mdl 128] White goes for the king.} (14. Qxc5 $6 Nd7 15. Qd4 Ngf6 $11) 14... Qb6 $2 {[%emt 0:08:44][%mdl 8192]} 15. O-O-O $18 {[%emt 0:09:43]} (15. Qxh8 f6 16. O-O-O (16. Bxf6 $2 Qxb2 17. c4 Bb4+ 18. Kd1 Qxf6 $19) 16... Nd7 $18) 15... Nd7 {[%emt 0:03:09]} (15... Be3+ 16. Kb1 Nd7 (16... Bxg5 $2 17. Nxg5 Qe3 18. Nxe6 $18) 17. Qxh8 $18) 16. Qxh8 {[%emt 0:12:58]} f6 {[%emt 0:00:15] [#]} 17. Rxd7 $1 {[%emt 0:09:08]} Kxd7 {[%emt 0:02:12]} 18. Bxf6 {[%emt 0:01:21]} (18. Qxh7+ $18 Ke8 19. Bd2) 18... Be3+ $2 {[%emt 0:13:57][%mdl 8192]} (18... Nxf6 $16 {is tougher.} 19. Ne5+ (19. Qxa8 Bxa2 20. g3 Be3+ 21. Kc2 Qb3+ 22. Kd3 Bh6 $19) (19. Qxf6 Re8 $16) 19... Kc7 20. Qxf6 (20. Qxa8 $2 Bxa2 21. Bc4 Ba3 $19) 20... Rd8) 19. Kb1 {[%emt 0:01:19]} Qa5 {[%emt 0:00:46] [#]} (19... Nxf6 $142 20. Qg7+ (20. Qxa8 Nxe4 21. Qh8 Nf2 $18) (20. Qxf6 Re8 $18) 20... Kc8) 20. Bc4 $1 {[%emt 0:01:14][%mdl 512]} Bxc4 {[%emt 0:04:24]} 21. Ne5+ {[%emt 0:00:07]} (21. Qxh7+ Ke6 22. Nd4+ Bxd4 23. Bxd4 Qxa2+ 24. Kc1 b6 (24... Qa1+ $2 25. Kc2 $19) 25. Qf5+ Ke7 26. Qe5+ Kf8 (26... Kd7 27. Bxb6 Qa1+ 28. Kc2 $15) 27. Qd6+ Kf7 $19) 21... Ke6 {[%emt 0:00:17]} 22. Nxc4 {[%emt 0:00:16]} Qc5 {[%emt 0:00:29]} 23. Na3 {[%emt 0:04:26]} Rf8 $2 {[%emt 0:02:07]} (23... Qh5 24. Bd4 Bxd4 25. Qxd4 Qe5) 24. Bg7 {[%emt 0:03:07] White is clearly winning.} Rd8 {[%emt 0:03:09]} 25. Qxh7 {[%emt 0:00:38]} Ne7 {[%emt 0:01:13]} 26. Rf1 {[%emt 0:01:55]} Rd2 {[%emt 0:02:07]} 27. Qh3+ {[%emt 0:00:00] Weighted Error Value: White=0.75/Black=0.70.  Loses game:     	---       	Black=2      Mistake:       	White=1     	Black=2      Inaccurate:     	White=1     	Black=1      OK:         	White=6     	Black=8      Best:        	White=3     	Black=1} 1-0

[Event "LEM Niedersachsen-Meister 2025"]
[Site "Verden"]
[Date "2025.01.03"]
[Round "4.13"]
[White "Schiller, Jan-Hendrik"]
[Black "de Vries, Carsten"]
[Result "1-0"]
[ECO "E04"]
[WhiteElo "1952"]
[BlackElo "1898"]
[Annotator "NA RC"]
[PlyCount "116"]
[EventDate "2024.12.27"]
[EventType "swiss"]
[EventCountry "GER"]
[SourceTitle "playchess.com"]
[Source "ChessBase"]
[SourceQuality "1"]
[TimeControl "40/5400+30:1800+30"]

1. Nf3 {[%emt 0:00:06]} d5 {[%emt 0:01:29]} 2. g3 {[%emt 0:00:13]} c5 {[%emt 0:00:20]} 3. Bg2 {[%emt 0:00:12]} Nc6 {[%emt 0:00:13]} 4. d4 {[%emt 0:00:13]} Nf6 {[%emt 0:00:28]} 5. O-O {[%emt 0:00:17]} e6 {[%emt 0:00:14]} 6. c4 {[%emt 0:00:15]} dxc4 {[%emt 0:00:48]} 7. dxc5 {[%emt 0:01:59]} Qxd1 {[%emt 0:00:10]} 8. Rxd1 {[%emt 0:00:16]} Bxc5 {[%emt 0:00:10]} 9. Nbd2 {[%emt 0:00:14]} c3 {[%emt 0:00:24]} 10. bxc3 {[%emt 0:00:12]} O-O {[%emt 0:00:56]} 11. Ne1 {[%emt 0:02:16]} Bd7 {[%emt 0:06:21]} 12. Nd3 {[%emt 0:02:55]} Be7 {[%emt 0:01:04]} 13. Nb3 {[%emt 0:02:32]} b6 {[%emt 0:11:41]} 14. Bb2 {[%emt 0:06:20]} Rac8 {[%emt 0:02:51]} 15. c4 {[%emt 0:05:11]} Rfd8 {[%emt 0:05:18]} 16. a4 {[%emt 0:14:25]} Be8 {[%emt 0:13:46]} 17. Rdc1 {[%emt 0:07:57]} Nb4 {[%emt 0:07:41]} 18. Ne5 {[%emt 0:02:34]} a5 {[%emt 0:10:40]} 19. Nd4 {[%emt 0:08:46]} Bc5 {[%emt 0:01:56]} 20. Nb3 {[%emt 0:04:48]} Be7 {[%emt 0:01:33]} 21. Bd4 {[%emt 0:06:26]} Rb8 {[%emt 0:16:56]} 22. c5 {[%emt 0:08:25]} bxc5 {[%emt 0:01:26]} 23. Bxc5 {[%emt 0:00:42]} Bxc5 {[%emt 0:02:03]} 24. Rxc5 {[%emt 0:01:02]} Nfd5 {[%emt 0:05:35]} 25. Nxa5 {[%emt 0:02:21]} Rdc8 {[%emt 0:04:08]} 26. Nb3 {[%emt 0:04:45]} Nc2 {[%emt 0:02:12]} 27. Rc1 {[%emt 0:02:04]} Rxc5 {[%emt 0:00:44]} 28. Nxc5 {[%emt 0:00:13]} Rb2 {[%emt 0:00:38]} 29. Ned3 {[%emt 0:02:50]} Ra2 {[%emt 0:00:43]} 30. Rb1 {[%emt 0:04:37]} Kf8 {[%emt 0:00:31]} 31. Rb2 {[%emt 0:01:01]} Rxb2 {[%emt 0:00:31]} 32. Nxb2 {[%emt 0:00:11]} Ke7 {[%emt 0:00:53]} 33. e3 {[%emt 0:01:10]} Kd6 {[%emt 0:00:23]} 34. Ne4+ {[%emt 0:01:10]} Kc7 {[%emt 0:00:56]} 35. Bf1 {[%emt 0:09:22]} Ncb4 {[%emt 0:00:42]} 36. Bb5 {[%emt 0:00:00]} Bxb5 {[%emt 0:00:46]} 37. axb5 {[%emt 0:00:00]} h6 {[%emt 0:00:11]} 38. Nc4 {[%emt 0:00:00]} g5 {[%emt 0:01:36]} 39. Nc5 {[%emt 0:00:00]} Na2 {[%emt 0:00:31]} 40. Na6+ {[%emt 0:00:00]} Kb7 {[%emt 0:00:31]} 41. Nc5+ {[%emt 0:30:02]} Kc7 {[%emt 0:00:52]} 42. e4 {[%emt 0:00:00]} Nb6 {[%emt 0:01:03]} 43. Na6+ {[%emt 0:00:00]} Kb7 {[%emt 0:00:12]} 44. Nd6+ {[%emt 0:00:00]} Ka7 {[%emt 0:00:41]} 45. Nxf7 {[%emt 0:00:00]} Nc3 {[%emt 0:00:08]} 46. Nc5 {[%emt 0:00:00]} Nc4 {[%emt 0:05:03]} 47. Nxe6 {[%emt 0:00:00]} Nxe4 {[%emt 0:00:44]} 48. Nxh6 {[%emt 0:00:00]} Ne5 {[%emt 0:01:01]} 49. Nd4 {[%emt 0:00:00]} Kb6 {[%emt 0:00:55]} 50. f3 {[%emt 0:00:00]} Nd2 {[%emt 0:01:41]} 51. Kf2 {[%emt 0:00:00]} Ndc4 {[%emt 0:02:16]} 52. Ne6 {[%emt 0:00:00]} Kxb5 {[%emt 0:00:48]} 53. Nxg5 {[%emt 0:00:00]} Kc5 {[%emt 0:00:16]} 54. f4 {[%emt 0:00:00]} Nd7 {[%emt 0:00:20]} 55. Nf5 {[%emt 0:00:00]} Nf6 {[%emt 0:00:25]} 56. Ne3 {[%emt 0:00:00]} Nd6 {[%emt 0:00:48]} 57. Kf3 {[%emt 0:00:00]} Nde8 {[%emt 0:00:57]} 58. Ne4+ {[%emt 0:00:00]} Kd4 {[%emt 0:00:37]} 1-0

[Event "LEM Niedersachsen-Meister 2025"]
[Site "Verden"]
[Date "2025.01.03"]
[Round "4.14"]
[White "Wilmink, Anna"]
[Black "Garbuszus, Juergen"]
[Result "0-1"]
[ECO "B20"]
[WhiteElo "2033"]
[BlackElo "2068"]
[Annotator "NA RC"]
[PlyCount "94"]
[EventDate "2024.12.27"]
[EventType "swiss"]
[EventCountry "GER"]
[SourceTitle "playchess.com"]
[Source "ChessBase"]
[SourceQuality "1"]
[TimeControl "40/5400+30:1800+30"]

1. e4 {[%emt 0:00:02]} c5 {[%emt 0:00:10]} 2. b3 {[%emt 0:00:08]} Nc6 {[%emt 0:05:10]} 3. Bb2 {[%emt 0:00:06]} d6 {[%emt 0:04:26]} 4. Bb5 {[%emt 0:00:09]} Bd7 {[%emt 0:01:50]} 5. Nc3 {[%emt 0:03:48]} a6 {[%emt 0:02:05]} 6. Bxc6 {[%emt 0:00:06]} Bxc6 {[%emt 0:00:07]} 7. d3 {[%emt 0:01:08]} e6 {[%emt 0:01:43]} 8. Qe2 {[%emt 0:02:49]} f6 {[%emt 0:12:34]} 9. f4 {[%emt 0:04:27]} Nh6 {[%emt 0:02:01]} 10. Nf3 {[%emt 0:03:10]} Be7 {[%emt 0:02:14]} 11. O-O {[%emt 0:05:25]} O-O {[%emt 0:03:51]} 12. Kh1 {[%emt 0:05:26]} b5 {[%emt 0:01:27]} 13. d4 {[%emt 0:04:59]} b4 {[%emt 0:01:00]} 14. Nd1 {[%emt 0:03:54]} Bb5 {[%emt 0:00:07]} 15. Qe1 {[%emt 0:02:10]} Bxf1 {[%emt 0:00:12]} 16. Qxf1 {[%emt 0:00:07]} d5 {[%emt 0:07:29]} 17. Nf2 {[%emt 0:03:45]} Qb6 {[%emt 0:01:59]} 18. Re1 {[%emt 0:04:41]} Rfe8 {[%emt 0:02:01]} 19. c4 {[%emt 0:03:29]} bxc3 {[%emt 0:02:52]} 20. Bxc3 {[%emt 0:00:13]} Qb5 {[%emt 0:02:06]} 21. Nd3 {[%emt 0:06:41]} c4 {[%emt 0:02:16]} 22. Nc1 {[%emt 0:04:51]} cxb3 {[%emt 0:01:43]} 23. Qxb5 {[%emt 0:00:16]} axb5 {[%emt 0:00:05]} 24. axb3 {[%emt 0:00:08]} Rec8 {[%emt 0:01:28]} 25. Bd2 {[%emt 0:04:52]} dxe4 {[%emt 0:01:31]} 26. Rxe4 {[%emt 0:00:35]} Ra1 {[%emt 0:00:36]} 27. Re1 {[%emt 0:00:08]} Kf7 {[%emt 0:02:46]} 28. h3 {[%emt 0:01:50]} Rc2 {[%emt 0:02:23]} 29. Kh2 {[%emt 0:05:19]} Bd6 {[%emt 0:01:39]} 30. Nd3 {[%emt 0:10:28]} Raa2 {[%emt 0:02:35]} 31. Rd1 {[%emt 0:01:09]} g5 {[%emt 0:00:08]} 32. Kh1 {[%emt 0:01:11]} gxf4 {[%emt 0:01:51]} 33. Bxf4 {[%emt 0:01:20]} Bxf4 {[%emt 0:00:38]} 34. Nxf4 {[%emt 0:00:05]} Nf5 {[%emt 0:00:19]} 35. Re1 {[%emt 0:01:11]} Ng3+ {[%emt 0:01:45]} 36. Kh2 {[%emt 0:00:30]} Ne2 {[%emt 0:00:03]} 37. Nd3 {[%emt 0:01:21]} Rd2 {[%emt 0:01:06]} 38. Nxd2 {[%emt 0:02:49]} Rxd2 {[%emt 0:00:10]} 39. Nc5 {[%emt 0:02:39]} Nxd4 {[%emt 0:00:06]} 40. Ra1 {[%emt 0:01:52]} Rc2 {[%emt 0:01:25]} 41. b4 {[%emt 0:40:15]} f5 {[%emt 0:30:29]} 42. Ra7+ {[%emt 0:00:00]} Kg6 {[%emt 0:00:00]} 43. Rd7 {[%emt 0:00:00]} e5 {[%emt 0:00:00]} 44. Kh1 {[%emt 0:00:00]} f4 {[%emt 0:00:00]} 45. Re7 {[%emt 0:00:00]} f3 {[%emt 0:00:00]} 46. gxf3 {[%emt 0:00:00]} Nxf3 {[%emt 0:00:00]} 47. Nd3 {[%emt 0:00:00]} Rh2# {[%emt 0:00:00]} 0-1